[Event "*** Titled Tuesday Blitz"]
[Site "Chess.com"]
[Date "2020.12.01"]
[Round "11"]
[White "r31415"]
[Black "bascheyaro"]
[Result "0-1"]
[WhiteElo "2511"]
[BlackElo "2749"]
[TimeControl "180+1"]
[EndTime "12:06:01 PST"]
[Termination "bascheyaro won on time"]

1. e4 {[%clk 0:03:00.9]} 1... e6 {[%clk 0:03:00]} 2. d4 {[%clk 0:03:00.6]} 2...
d5 {[%clk 0:03:00.2]} 3. Nc3 {[%clk 0:03:00.9]} 3... Bb4 {[%clk 0:02:59.3]} 4.
exd5 {[%clk 0:03:01]} 4... exd5 {[%clk 0:02:59.3]} 5. Bd3 {[%clk 0:03:01.4]}
5... Nf6 {[%clk 0:02:55.5]} 6. Bg5 {[%clk 0:02:44.6]} 6... h6 {[%clk 0:02:54]}
7. Bh4 {[%clk 0:02:44.1]} 7... c5 {[%clk 0:02:54.3]} 8. a3 {[%clk 0:02:16.1]}
8... Qe7+ {[%clk 0:02:54.1]} 9. Be2 {[%clk 0:02:04.4]} 9... Bxc3+ {[%clk
0:02:39.9]} 10. bxc3 {[%clk 0:02:04.2]} 10... Nc6 {[%clk 0:02:38.5]} 11. Nf3
{[%clk 0:01:59.4]} 11... Bg4 {[%clk 0:02:36.8]} 12. O-O {[%clk 0:01:56.4]} 12...
O-O {[%clk 0:02:35.3]} 13. Re1 {[%clk 0:01:54.4]} 13... Rae8 {[%clk 0:02:31.8]}
14. Ne5 {[%clk 0:01:44.6]} 14... Bxe2 {[%clk 0:02:26]} 15. Rxe2 {[%clk
0:01:44.1]} 15... cxd4 {[%clk 0:02:25.7]} 16. cxd4 {[%clk 0:01:26.7]} 16... Qd6
{[%clk 0:02:21.4]} 17. Bxf6 {[%clk 0:01:18.1]} 17... Qxf6 {[%clk 0:02:21.5]} 18.
Nd7 {[%clk 0:01:12.4]} 18... Qxd4 {[%clk 0:02:21.5]} 19. Qxd4 {[%clk 0:01:00.9]}
19... Nxd4 {[%clk 0:02:22.4]} 20. Rd2 {[%clk 0:01:01.1]} 20... Nxc2 {[%clk
0:01:41.5]} 21. Rxc2 {[%clk 0:00:53.4]} 21... Rc8 {[%clk 0:01:41.4]} 22. Rac1
{[%clk 0:00:47.5]} 22... Rxc2 {[%clk 0:01:40.2]} 23. Rxc2 {[%clk 0:00:48.4]}
23... Re8 {[%clk 0:01:39.4]} 24. Kf1 {[%clk 0:00:47.4]} 24... f6 {[%clk
0:01:18.6]} 25. Rc7 {[%clk 0:00:45.8]} 25... d4 {[%clk 0:01:13.1]} 26. Nc5
{[%clk 0:00:40]} 26... Re5 {[%clk 0:01:08.7]} 27. Nxb7 {[%clk 0:00:24.6]} 27...
d3 {[%clk 0:01:08.7]} 28. Rd7 {[%clk 0:00:22.8]} 28... Rb5 {[%clk 0:01:08.7]}
29. Rd8+ {[%clk 0:00:14.5]} 29... Kh7 {[%clk 0:01:08.3]} 30. Rxd3 {[%clk
0:00:14.8]} 30... Rxb7 {[%clk 0:01:08.4]} 31. h4 {[%clk 0:00:13.9]} 31... Kg6
{[%clk 0:01:07.1]} 32. g3 {[%clk 0:00:14.2]} 32... Kf5 {[%clk 0:01:07.3]} 33.
Kg2 {[%clk 0:00:14.7]} 33... Ke4 {[%clk 0:01:06.2]} 34. Rd6 {[%clk 0:00:12]}
34... Ke5 {[%clk 0:01:03]} 35. Rd3 {[%clk 0:00:09.1]} 35... g5 {[%clk 0:01:01]}
36. h5 {[%clk 0:00:06.4]} 36... g4 {[%clk 0:01:01.2]} 37. f3 {[%clk 0:00:03.1]}
37... gxf3+ {[%clk 0:00:59.3]} 38. Kxf3 {[%clk 0:00:02.8]} 38... f5 {[%clk
0:00:59.7]} 39. Re3+ {[%clk 0:00:02.3]} 39... Kf6 {[%clk 0:00:59.8]} 40. Kf4
{[%clk 0:00:01.5]} 40... Rc7 {[%clk 0:01:00]} 41. Rd3 {[%clk 0:00:01.4]} 41...
Rc4+ {[%clk 0:01:00]} 42. Kf3 {[%clk 0:00:01.8]} 42... Kg5 {[%clk 0:01:00.4]}
43. Rd5 {[%clk 0:00:01.1]} 43... Rc3+ {[%clk 0:01:00.6]} 44. Kg2 {[%clk
0:00:01.4]} 44... Rxa3 {[%clk 0:01:00.9]} 45. Rc5 {[%clk 0:00:01.4]} 45... a5
{[%clk 0:00:58.1]} 46. Kh3 {[%clk 0:00:01.7]} 46... a4 {[%clk 0:00:58.2]} 47.
Ra5 {[%clk 0:00:01.8]} 47... Ra1 {[%clk 0:00:55.2]} 48. Rb5 {[%clk 0:00:02.1]}
48... a3 {[%clk 0:00:53.4]} 49. Kg2 {[%clk 0:00:02.4]} 49... Kg4 {[%clk
0:00:52.2]} 50. Rb4+ {[%clk 0:00:02.1]} 50... Kxh5 {[%clk 0:00:52]} 51. Ra4
{[%clk 0:00:02.3]} 51... Kg5 {[%clk 0:00:51.8]} 52. Kh2 {[%clk 0:00:01.9]} 52...
h5 {[%clk 0:00:51.5]} 53. Kg2 {[%clk 0:00:02.4]} 53... Kf6 {[%clk 0:00:47.2]}
54. Ra6+ {[%clk 0:00:02.3]} 54... Ke5 {[%clk 0:00:47.4]} 55. Ra5+ {[%clk
0:00:02.7]} 55... Ke4 {[%clk 0:00:46.7]} 56. Ra4+ {[%clk 0:00:02.7]} 56... Kd3
{[%clk 0:00:47.1]} 57. Ra5 {[%clk 0:00:02.1]} 57... Kc4 {[%clk 0:00:46.4]} 58.
Rxa3 {[%clk 0:00:01.9]} 58... Rxa3 {[%clk 0:00:46]} 0-1

[Event "*** Titled Tuesday Blitz"]
[Site "Chess.com"]
[Date "2020.12.01"]
[Round "11"]
[White "guillembaches"]
[Black "Matols"]
[Result "1/2-1/2"]
[WhiteElo "2365"]
[BlackElo "2228"]
[TimeControl "180+1"]
[EndTime "12:06:01 PST"]
[Termination "Game drawn by repetition"]

1. d4 {[%clk 0:03:00.9]} 1... Nf6 {[%clk 0:02:59]} 2. Bf4 {[%clk 0:03:00.7]}
2... e6 {[%clk 0:02:58.5]} 3. e3 {[%clk 0:03:00.8]} 3... d5 {[%clk 0:02:58.3]}
4. Nd2 {[%clk 0:03:00.9]} 4... c5 {[%clk 0:02:58]} 5. c3 {[%clk 0:03:00.9]} 5...
Nc6 {[%clk 0:02:56.9]} 6. Bd3 {[%clk 0:02:59.7]} 6... Bd6 {[%clk 0:02:56]} 7.
Bxd6 {[%clk 0:02:59.4]} 7... Qxd6 {[%clk 0:02:55.7]} 8. f4 {[%clk 0:02:59.6]}
8... O-O {[%clk 0:02:45.6]} 9. Ngf3 {[%clk 0:02:59.5]} 9... b6 {[%clk
0:02:44.8]} 10. a3 {[%clk 0:02:54.3]} 10... Bb7 {[%clk 0:02:44.2]} 11. Ne5
{[%clk 0:02:51.2]} 11... Rac8 {[%clk 0:02:41.8]} 12. g4 {[%clk 0:02:45.8]} 12...
Nd7 {[%clk 0:02:26]} 13. g5 {[%clk 0:02:41.8]} 13... cxd4 {[%clk 0:02:18.8]} 14.
cxd4 {[%clk 0:02:37.4]} 14... Ncxe5 {[%clk 0:02:05.8]} 15. fxe5 {[%clk
0:02:34.5]} 15... Nxe5 {[%clk 0:01:59.6]} 16. dxe5 {[%clk 0:02:17.6]} 16... Qxe5
{[%clk 0:01:59.3]} 17. Qe2 {[%clk 0:02:09.3]} 17... Qxg5 {[%clk 0:01:45.5]} 18.
Nf3 {[%clk 0:02:04.6]} 18... Qh5 {[%clk 0:01:32.1]} 19. Nd4 {[%clk 0:01:56.4]}
19... Qh4+ {[%clk 0:01:19.4]} 20. Qf2 {[%clk 0:01:51.7]} 20... Qxf2+ {[%clk
0:01:02.1]} 21. Kxf2 {[%clk 0:01:51.5]} 21... e5 {[%clk 0:01:01.9]} 22. Nf5
{[%clk 0:01:49.5]} 22... d4 {[%clk 0:00:57.5]} 23. Ne7+ {[%clk 0:01:34]} 23...
Kh8 {[%clk 0:00:56.7]} 24. Nxc8 {[%clk 0:01:32.4]} 24... Bxh1 {[%clk 0:00:50.9]}
25. Nxa7 {[%clk 0:01:26.8]} 25... dxe3+ {[%clk 0:00:47.3]} 26. Kxe3 {[%clk
0:01:26.4]} 26... Bd5 {[%clk 0:00:46]} 27. Nb5 {[%clk 0:01:21]} 27... f5 {[%clk
0:00:44.2]} 28. Nc3 {[%clk 0:01:21.1]} 28... Bc6 {[%clk 0:00:39.8]} 29. Rf1
{[%clk 0:01:10.5]} 29... g6 {[%clk 0:00:38]} 30. Bb5 {[%clk 0:01:04.2]} 30...
Bb7 {[%clk 0:00:34.3]} 31. Rd1 {[%clk 0:00:51.8]} 31... f4+ {[%clk 0:00:32.5]}
32. Ke2 {[%clk 0:00:45.1]} 32... e4 {[%clk 0:00:32.3]} 33. Rd7 {[%clk
0:00:44.7]} 33... Bc8 {[%clk 0:00:32.2]} 34. Re7 {[%clk 0:00:42.9]} 34... Bg4+
{[%clk 0:00:31.5]} 35. Ke1 {[%clk 0:00:39.6]} 35... e3 {[%clk 0:00:31.4]} 36.
Re4 {[%clk 0:00:14.1]} 36... g5 {[%clk 0:00:29.9]} 37. Bd3 {[%clk 0:00:11.4]}
37... Rd8 {[%clk 0:00:28.1]} 38. Be2 {[%clk 0:00:10.2]} 38... Bxe2 {[%clk
0:00:24.7]} 39. Kxe2 {[%clk 0:00:10.4]} 39... Rd2+ {[%clk 0:00:24.6]} 40. Ke1
{[%clk 0:00:10.7]} 40... Rxb2 {[%clk 0:00:23.7]} 41. Nd5 {[%clk 0:00:10.7]}
41... Rxh2 {[%clk 0:00:20.9]} 42. Re7 {[%clk 0:00:10.9]} 42... Kg8 {[%clk
0:00:16.4]} 43. Nf6+ {[%clk 0:00:10.5]} 43... Kf8 {[%clk 0:00:16.7]} 44. Rd7
{[%clk 0:00:10.5]} 44... h5 {[%clk 0:00:14.3]} 45. Nh7+ {[%clk 0:00:10.4]} 45...
Ke8 {[%clk 0:00:14.5]} 46. Nf6+ {[%clk 0:00:10.6]} 46... Kf8 {[%clk 0:00:14.6]}
47. Nh7+ {[%clk 0:00:10.7]} 47... Ke8 {[%clk 0:00:15]} 48. Nf6+ {[%clk
0:00:10.2]} 48... Kf8 {[%clk 0:00:15.3]} 1/2-1/2

[Event "*** Titled Tuesday Blitz"]
[Site "Chess.com"]
[Date "2020.12.01"]
[Round "11"]
[White "Alexsur1981"]
[Black "Buffy7"]
[Result "0-1"]
[WhiteElo "2810"]
[BlackElo "2709"]
[TimeControl "180+1"]
[EndTime "12:06:02 PST"]
[Termination "Buffy7 won on time"]

1. e4 {[%clk 0:02:52.8]} 1... c6 {[%clk 0:02:59.4]} 2. Nf3 {[%clk 0:02:49.1]}
2... d5 {[%clk 0:02:59.2]} 3. d3 {[%clk 0:02:49.5]} 3... Qc7 {[%clk 0:02:59.5]}
4. Qe2 {[%clk 0:02:35.2]} 4... dxe4 {[%clk 0:02:50]} 5. dxe4 {[%clk 0:02:35]}
5... e5 {[%clk 0:02:49.7]} 6. Nbd2 {[%clk 0:02:31]} 6... Ne7 {[%clk 0:02:33.9]}
7. h4 {[%clk 0:02:28.7]} 7... h5 {[%clk 0:02:32.6]} 8. g3 {[%clk 0:02:28.2]}
8... Bg4 {[%clk 0:02:28.5]} 9. Nc4 {[%clk 0:02:22.3]} 9... f6 {[%clk 0:02:20.4]}
10. Ne3 {[%clk 0:02:21]} 10... Be6 {[%clk 0:02:18.4]} 11. Bg2 {[%clk 0:02:20.5]}
11... Nd7 {[%clk 0:02:07]} 12. O-O {[%clk 0:02:18.9]} 12... O-O-O {[%clk
0:02:06.9]} 13. b4 {[%clk 0:02:17.1]} 13... Rg8 {[%clk 0:01:43]} 14. c4 {[%clk
0:02:14.4]} 14... g5 {[%clk 0:01:40.9]} 15. Bb2 {[%clk 0:02:10.1]} 15... g4
{[%clk 0:01:32.2]} 16. Nd2 {[%clk 0:02:08.7]} 16... Kb8 {[%clk 0:01:31.9]} 17.
Rfc1 {[%clk 0:02:06.1]} 17... Ng6 {[%clk 0:01:29.6]} 18. Nd5 {[%clk 0:01:49.5]}
18... Qc8 {[%clk 0:01:24.7]} 19. a4 {[%clk 0:01:45.6]} 19... Bh6 {[%clk
0:00:54.8]} 20. a5 {[%clk 0:01:32.3]} 20... Rde8 {[%clk 0:00:46.3]} 21. Rc2
{[%clk 0:01:11.4]} 21... Qd8 {[%clk 0:00:45.3]} 22. Ne3 {[%clk 0:00:58.5]} 22...
Nf4 {[%clk 0:00:41.8]} 23. Qf1 {[%clk 0:00:51.6]} 23... Nxg2 {[%clk 0:00:40.9]}
24. Nxg2 {[%clk 0:00:44.7]} 24... Qe7 {[%clk 0:00:39.2]} 25. Qe2 {[%clk
0:00:43.5]} 25... Rd8 {[%clk 0:00:30.8]} 26. Ne3 {[%clk 0:00:42.4]} 26... Qh7
{[%clk 0:00:17.1]} 27. Nd5 {[%clk 0:00:35.6]} 27... cxd5 {[%clk 0:00:16.1]} 28.
cxd5 {[%clk 0:00:34.1]} 28... Bxd5 {[%clk 0:00:16.1]} 29. Re1 {[%clk 0:00:24.9]}
29... Bxd2 {[%clk 0:00:14.1]} 30. Rxd2 {[%clk 0:00:24]} 30... Be6 {[%clk
0:00:13]} 31. b5 {[%clk 0:00:22.5]} 31... Qe7 {[%clk 0:00:13.1]} 32. Qe3 {[%clk
0:00:20.7]} 32... Nc5 {[%clk 0:00:12]} 33. Ba3 {[%clk 0:00:15.8]} 33... b6
{[%clk 0:00:11.9]} 34. axb6 {[%clk 0:00:14.9]} 34... axb6 {[%clk 0:00:12.8]} 35.
Rc2 {[%clk 0:00:15.4]} 35... Rc8 {[%clk 0:00:10.4]} 36. Rec1 {[%clk 0:00:14]}
36... Rgd8 {[%clk 0:00:11]} 37. Kh2 {[%clk 0:00:11.4]} 37... Qb7 {[%clk
0:00:10.5]} 38. Qh6 {[%clk 0:00:08.3]} 38... Nxe4 {[%clk 0:00:09.2]} 39. Rc6
{[%clk 0:00:03]} 39... Bd5 {[%clk 0:00:08.6]} 0-1

[Event "*** Titled Tuesday Blitz"]
[Site "Chess.com"]
[Date "2020.12.01"]
[Round "11"]
[White "plumalka"]
[Black "Gusarov91"]
[Result "0-1"]
[WhiteElo "2499"]
[BlackElo "2650"]
[TimeControl "180+1"]
[EndTime "12:06:03 PST"]
[Termination "Gusarov91 won by resignation"]

1. e4 {[%clk 0:03:00.9]} 1... c6 {[%clk 0:03:00]} 2. d4 {[%clk 0:03:00]} 2...
Na6 {[%clk 0:03:00.1]} 3. Nf3 {[%clk 0:02:57.3]} 3... Nc7 {[%clk 0:03:00.3]} 4.
c4 {[%clk 0:02:56.5]} 4... d5 {[%clk 0:03:00.2]} 5. e5 {[%clk 0:02:55.2]} 5...
Bg4 {[%clk 0:02:59.5]} 6. Nc3 {[%clk 0:02:52.5]} 6... Bxf3 {[%clk 0:02:59.2]} 7.
Qxf3 {[%clk 0:02:51.2]} 7... e6 {[%clk 0:02:59.2]} 8. Be3 {[%clk 0:02:43.7]}
8... Ne7 {[%clk 0:02:56.7]} 9. a3 {[%clk 0:02:39.8]} 9... dxc4 {[%clk
0:02:54.5]} 10. Bxc4 {[%clk 0:02:38.8]} 10... Ncd5 {[%clk 0:02:54.6]} 11. O-O
{[%clk 0:02:37.5]} 11... Nxc3 {[%clk 0:02:45.5]} 12. bxc3 {[%clk 0:02:37.2]}
12... Nd5 {[%clk 0:02:45.9]} 13. Bd2 {[%clk 0:02:29.8]} 13... Be7 {[%clk
0:02:45.2]} 14. Qg3 {[%clk 0:02:26.1]} 14... g6 {[%clk 0:02:43.4]} 15. f4 {[%clk
0:02:24.2]} 15... b5 {[%clk 0:02:42.4]} 16. Bd3 {[%clk 0:02:23.2]} 16... a6
{[%clk 0:02:41.5]} 17. a4 {[%clk 0:02:16]} 17... Bh4 {[%clk 0:02:22.8]} 18. Qf3
{[%clk 0:02:14.6]} 18... Be7 {[%clk 0:02:22.6]} 19. f5 {[%clk 0:01:54.1]} 19...
gxf5 {[%clk 0:02:21.9]} 20. Bxf5 {[%clk 0:01:54.1]} 20... exf5 {[%clk
0:02:20.4]} 21. Qxf5 {[%clk 0:01:55]} 21... Rf8 {[%clk 0:02:17.7]} 22. Bh6
{[%clk 0:01:54.4]} 22... Qd7 {[%clk 0:02:17.7]} 23. Qf3 {[%clk 0:01:36.8]} 23...
Qe6 {[%clk 0:02:05.1]} 24. Bxf8 {[%clk 0:01:36]} 24... Bxf8 {[%clk 0:02:05.5]}
25. axb5 {[%clk 0:01:35.8]} 25... cxb5 {[%clk 0:02:05.4]} 26. Qe4 {[%clk
0:01:18]} 26... Rc8 {[%clk 0:02:03]} 27. Rf3 {[%clk 0:01:16.6]} 27... h6 {[%clk
0:01:54.9]} 28. Raf1 {[%clk 0:01:12.9]} 28... Rc7 {[%clk 0:01:54.9]} 29. h3
{[%clk 0:00:53.2]} 29... a5 {[%clk 0:01:53.3]} 30. Rb1 {[%clk 0:00:42.7]} 30...
Nxc3 {[%clk 0:01:47.8]} 31. Rxc3 {[%clk 0:00:26.8]} 31... Rxc3 {[%clk
0:01:47.5]} 32. Rxb5 {[%clk 0:00:27]} 32... Rc1+ {[%clk 0:01:33.4]} 33. Kh2
{[%clk 0:00:26.9]} 33... Rc8 {[%clk 0:01:33.2]} 34. Rxa5 {[%clk 0:00:26]} 34...
Bg7 {[%clk 0:01:31.7]} 35. Ra3 {[%clk 0:00:18.6]} 35... Kf8 {[%clk 0:01:31]} 36.
Re3 {[%clk 0:00:17.6]} 36... Rd8 {[%clk 0:01:30.4]} 37. Rd3 {[%clk 0:00:15.4]}
37... Qd5 {[%clk 0:01:27.7]} 38. Qe3 {[%clk 0:00:10.8]} 38... Bxe5+ {[%clk
0:01:25.3]} 39. g3 {[%clk 0:00:08.5]} 39... Bg7 {[%clk 0:01:24.9]} 40. Qf4
{[%clk 0:00:07.7]} 40... Qa2+ {[%clk 0:01:24.1]} 41. Rd2 {[%clk 0:00:06.7]}
41... Qd5 {[%clk 0:01:23.6]} 42. Rf2 {[%clk 0:00:06.9]} 42... Kg8 {[%clk
0:01:21.1]} 43. h4 {[%clk 0:00:05.9]} 43... Rd7 {[%clk 0:01:19.5]} 44. Rd2
{[%clk 0:00:05]} 44... Qd6 {[%clk 0:01:16.3]} 45. Qf5 {[%clk 0:00:04.5]} 45...
Qe6 {[%clk 0:01:16.2]} 46. Qf3 {[%clk 0:00:03.6]} 46... Rxd4 {[%clk 0:01:13]}
47. Re2 {[%clk 0:00:02.2]} 47... Qd5 {[%clk 0:01:06.8]} 48. Re8+ {[%clk
0:00:01.7]} 48... Kh7 {[%clk 0:01:07.3]} 49. Qxd5 {[%clk 0:00:02.1]} 49... Rxd5
{[%clk 0:01:07.5]} 50. Re7 {[%clk 0:00:03]} 50... Kg8 {[%clk 0:01:06.9]} 51. Re3
{[%clk 0:00:02.6]} 51... Bf6 {[%clk 0:01:06.9]} 52. Kh3 {[%clk 0:00:03]} 52...
Kg7 {[%clk 0:01:07.1]} 53. Rf3 {[%clk 0:00:03.9]} 53... Rd4 {[%clk 0:01:06.9]}
54. g4 {[%clk 0:00:04.5]} 54... Rc4 {[%clk 0:01:04.8]} 55. Kg3 {[%clk 0:00:05]}
55... Rc3 {[%clk 0:01:05.2]} 56. Rxc3 {[%clk 0:00:05.3]} 56... Bxc3 {[%clk
0:01:06.1]} 57. Kf4 {[%clk 0:00:05.8]} 57... Be1 {[%clk 0:01:06]} 58. g5 {[%clk
0:00:05]} 58... Bxh4 {[%clk 0:01:05.3]} 59. gxh6+ {[%clk 0:00:05.2]} 59... Kxh6
{[%clk 0:01:05.8]} 60. Kf5 {[%clk 0:00:05.5]} 60... Kg7 {[%clk 0:01:05.8]} 61.
Kg4 {[%clk 0:00:05.9]} 61... Bd8 {[%clk 0:01:06.5]} 62. Kf5 {[%clk 0:00:06.3]}
62... f6 {[%clk 0:01:07.3]} 63. Kg4 {[%clk 0:00:06.8]} 63... Kg6 {[%clk
0:01:08.2]} 0-1

[Event "*** Titled Tuesday Blitz"]
[Site "Chess.com"]
[Date "2020.12.01"]
[Round "11"]
[White "MaxLeto"]
[Black "Abdimalik_Abdisalimov"]
[Result "1-0"]
[WhiteElo "2387"]
[BlackElo "2657"]
[TimeControl "180+1"]
[EndTime "12:06:03 PST"]
[Termination "MaxLeto won on time"]

1. g4 {[%clk 0:02:56.5]} 1... d5 {[%clk 0:02:56.9]} 2. Bg2 {[%clk 0:02:55.6]}
2... c6 {[%clk 0:02:54.8]} 3. g5 {[%clk 0:02:46.7]} 3... e5 {[%clk 0:02:50.4]}
4. d4 {[%clk 0:02:45.6]} 4... e4 {[%clk 0:02:46.2]} 5. c4 {[%clk 0:02:43.3]}
5... Bd6 {[%clk 0:02:42.4]} 6. Nc3 {[%clk 0:02:40.6]} 6... Ne7 {[%clk
0:02:41.5]} 7. h4 {[%clk 0:02:37.8]} 7... a6 {[%clk 0:02:30.4]} 8. Nh3 {[%clk
0:02:27.2]} 8... Bf5 {[%clk 0:02:20.2]} 9. Be3 {[%clk 0:02:12.9]} 9... Nd7
{[%clk 0:02:17]} 10. c5 {[%clk 0:01:53.2]} 10... Bc7 {[%clk 0:02:14.9]} 11. b4
{[%clk 0:01:41]} 11... Ng6 {[%clk 0:02:02]} 12. h5 {[%clk 0:01:34.2]} 12... Bxh3
{[%clk 0:02:00.4]} 13. Bxh3 {[%clk 0:01:27.2]} 13... Nf4 {[%clk 0:02:00.3]} 14.
Qd2 {[%clk 0:00:23.7]} 14... Qxg5 {[%clk 0:01:40.6]} 15. O-O-O {[%clk
0:00:21.6]} 15... Qf6 {[%clk 0:01:35.7]} 16. Bxd7+ {[%clk 0:00:16.6]} 16... Kxd7
{[%clk 0:01:34.6]} 17. Rdg1 {[%clk 0:00:15.7]} 17... h6 {[%clk 0:01:30.3]} 18.
Rg4 {[%clk 0:00:14.3]} 18... Ne6 {[%clk 0:01:27.1]} 19. Rhg1 {[%clk 0:00:12.9]}
19... Qf5 {[%clk 0:01:21.2]} 20. Rh4 {[%clk 0:00:11.5]} 20... Rag8 {[%clk
0:01:00.9]} 21. a4 {[%clk 0:00:11.4]} 21... g5 {[%clk 0:00:50.6]} 22. hxg6
{[%clk 0:00:11.4]} 22... Rxg6 {[%clk 0:00:49.5]} 23. Rgh1 {[%clk 0:00:11.9]}
23... h5 {[%clk 0:00:45.6]} 24. b5 {[%clk 0:00:11.8]} 24... axb5 {[%clk
0:00:42.3]} 25. axb5 {[%clk 0:00:12.7]} 25... Bd8 {[%clk 0:00:24.8]} 26. R4h2
{[%clk 0:00:09.8]} 26... h4 {[%clk 0:00:22.8]} 27. Qa2 {[%clk 0:00:08.7]} 27...
Bc7 {[%clk 0:00:11.6]} 28. Rh3 {[%clk 0:00:07.3]} 28... Qg4 {[%clk 0:00:10.6]}
29. Qa7 {[%clk 0:00:06.2]} 29... Nd8 {[%clk 0:00:03.7]} 30. b6 {[%clk
0:00:04.7]} 30... Bf4 {[%clk 0:00:02.1]} 31. Kc2 {[%clk 0:00:03.3]} 31... Bxe3
{[%clk 0:00:02]} 32. fxe3 {[%clk 0:00:04.2]} 32... Qg2 {[%clk 0:00:01.9]} 33.
Qb8 {[%clk 0:00:04.3]} 33... Qg4 {[%clk 0:00:02.5]} 34. Qc7+ {[%clk 0:00:04.4]}
34... Ke8 {[%clk 0:00:02.4]} 35. Qd6 {[%clk 0:00:03.8]} 35... Qd7 {[%clk
0:00:02.5]} 36. Qe5+ {[%clk 0:00:03.7]} 36... Qe6 {[%clk 0:00:02.2]} 37. Qxh8+
{[%clk 0:00:03.7]} 1-0

[Event "*** Titled Tuesday Blitz"]
[Site "Chess.com"]
[Date "2020.12.01"]
[Round "11"]
[White "Beca95"]
[Black "karinachess1"]
[Result "1-0"]
[WhiteElo "2870"]
[BlackElo "2508"]
[TimeControl "180+1"]
[EndTime "12:06:04 PST"]
[Termination "Beca95 won on time"]

1. d4 {[%clk 0:03:00.9]} 1... d5 {[%clk 0:02:57.9]} 2. c4 {[%clk 0:03:00]} 2...
e6 {[%clk 0:02:57.8]} 3. Nc3 {[%clk 0:02:59.5]} 3... Nf6 {[%clk 0:02:57.9]} 4.
Nf3 {[%clk 0:02:58.9]} 4... Bb4 {[%clk 0:02:55.2]} 5. Bg5 {[%clk 0:02:55.6]}
5... h6 {[%clk 0:02:55]} 6. Bd2 {[%clk 0:02:54.8]} 6... O-O {[%clk 0:02:31.4]}
7. g4 {[%clk 0:02:49.4]} 7... Bxc3 {[%clk 0:02:10.3]} 8. Bxc3 {[%clk 0:02:47.4]}
8... Ne4 {[%clk 0:02:10.9]} 9. Qc2 {[%clk 0:02:47.2]} 9... b6 {[%clk 0:01:51.3]}
10. Rg1 {[%clk 0:02:43.3]} 10... g6 {[%clk 0:01:44.1]} 11. h4 {[%clk 0:02:32.7]}
11... Nd7 {[%clk 0:01:34.6]} 12. Bd2 {[%clk 0:02:13.4]} 12... Kg7 {[%clk
0:01:23.7]} 13. Bf4 {[%clk 0:01:55.7]} 13... c5 {[%clk 0:01:06.9]} 14. g5 {[%clk
0:01:46.7]} 14... h5 {[%clk 0:01:06.2]} 15. cxd5 {[%clk 0:01:28.9]} 15... exd5
{[%clk 0:01:06]} 16. Ne5 {[%clk 0:01:29]} 16... Bb7 {[%clk 0:00:49.4]} 17. f3
{[%clk 0:01:04.4]} 17... Nd6 {[%clk 0:00:48.9]} 18. Nxg6 {[%clk 0:00:55.8]}
18... fxg6 {[%clk 0:00:48.8]} 19. Bxd6 {[%clk 0:00:55]} 19... Re8 {[%clk
0:00:47.2]} 20. Bh3 {[%clk 0:00:55.1]} 20... Ba6 {[%clk 0:00:40.8]} 21. O-O-O
{[%clk 0:00:27.8]} 21... Rxe2 {[%clk 0:00:38.9]} 22. Qc3 {[%clk 0:00:26.7]}
22... cxd4 {[%clk 0:00:18.4]} 23. Qxd4+ {[%clk 0:00:26.2]} 23... Kh7 {[%clk
0:00:16.9]} 24. Kb1 {[%clk 0:00:26.4]} 24... Rc8 {[%clk 0:00:11.7]} 25. Rge1
{[%clk 0:00:22.2]} 25... Rcc2 {[%clk 0:00:09]} 26. Rxe2 {[%clk 0:00:21.5]} 26...
Rxe2 {[%clk 0:00:09.9]} 27. Qxd5 {[%clk 0:00:12.3]} 27... Qe8 {[%clk 0:00:10.2]}
28. Ba3 {[%clk 0:00:10.1]} 28... Ne5 {[%clk 0:00:07.9]} 29. b3 {[%clk
0:00:09.5]} 29... Nd3 {[%clk 0:00:07.5]} 30. Rxd3 {[%clk 0:00:07.9]} 30... Bxd3+
{[%clk 0:00:07.2]} 31. Qxd3 {[%clk 0:00:08.8]} 31... Re1+ {[%clk 0:00:07.6]} 32.
Bc1 {[%clk 0:00:09.4]} 32... Qc6 {[%clk 0:00:05.3]} 33. Qc2 {[%clk 0:00:08.6]}
33... Qxf3 {[%clk 0:00:02.8]} 34. Bg2 {[%clk 0:00:06.7]} 34... Qf7 {[%clk
0:00:01.7]} 35. Be4 {[%clk 0:00:06.3]} 35... Qg7 {[%clk 0:00:01.3]} 36. Bd3
{[%clk 0:00:05.8]} 36... Qf7 {[%clk 0:00:01.5]} 37. a4 {[%clk 0:00:06]} 37...
Qg7 {[%clk 0:00:01.7]} 38. Ka2 {[%clk 0:00:05.9]} 38... Re6 {[%clk 0:00:01]} 39.
Bb2 {[%clk 0:00:06.3]} 39... Qe7 {[%clk 0:00:01.2]} 40. Qc3 {[%clk 0:00:06.7]}
1-0